[Event "*** Titled Tuesday Blitz"]
[Site "Chess.com"]
[Date "2020.04.28"]
[Round "7"]
[White "manuellarrea"]
[Black "Future2700"]
[Result "1-0"]
[WhiteElo "2184"]
[BlackElo "2378"]
[TimeControl "180+1"]
[EndTime "11:17:45 PDT"]
[Termination "manuellarrea won by checkmate"]

1. e4 {[%clk 0:03:00.5]} 1... c5 {[%clk 0:02:06.5]} 2. Nf3 {[%clk 0:02:59.2]}
2... e6 {[%clk 0:01:53.1]} 3. d4 {[%clk 0:02:56.8]} 3... cxd4 {[%clk 0:01:52.8]}
4. Nxd4 {[%clk 0:02:55.4]} 4... Nc6 {[%clk 0:01:53.7]} 5. Nc3 {[%clk 0:02:53.7]}
5... Qc7 {[%clk 0:01:53.6]} 6. Be3 {[%clk 0:02:53]} 6... a6 {[%clk 0:01:53.4]}
7. Qf3 {[%clk 0:02:53]} 7... Bd6 {[%clk 0:01:52.5]} 8. O-O-O {[%clk 0:02:51.6]}
8... Be5 {[%clk 0:01:53]} 9. Kb1 {[%clk 0:02:43.9]} 9... b5 {[%clk 0:01:52.7]}
10. a3 {[%clk 0:02:29.5]} 10... Bb7 {[%clk 0:01:51.3]} 11. Qe2 {[%clk
0:02:22.9]} 11... Rc8 {[%clk 0:01:47.1]} 12. g3 {[%clk 0:02:18.7]} 12... g6
{[%clk 0:01:35.4]} 13. f4 {[%clk 0:02:18.1]} 13... Bg7 {[%clk 0:01:35.8]} 14.
Bg2 {[%clk 0:02:17.9]} 14... Nge7 {[%clk 0:01:33.1]} 15. e5 {[%clk 0:01:58.3]}
15... O-O {[%clk 0:01:28.2]} 16. Ne4 {[%clk 0:01:46.6]} 16... Nxd4 {[%clk
0:01:24]} 17. Bxd4 {[%clk 0:01:45.4]} 17... Nf5 {[%clk 0:01:19]} 18. Bf2 {[%clk
0:01:34.3]} 18... d5 {[%clk 0:01:04.7]} 19. exd6 {[%clk 0:01:27.8]} 19... Nxd6
{[%clk 0:01:04.8]} 20. Nxd6 {[%clk 0:00:40.8]} 20... Bxg2 {[%clk 0:01:05.7]} 21.
Rhg1 {[%clk 0:00:29.6]} 21... Bd5 {[%clk 0:01:05.4]} 22. Nxc8 {[%clk 0:00:28.9]}
22... Rxc8 {[%clk 0:01:06.3]} 23. Bd4 {[%clk 0:00:28.4]} 23... Bf8 {[%clk
0:01:03.6]} 24. Be5 {[%clk 0:00:25.9]} 24... Qa5 {[%clk 0:01:00.9]} 25. Qd2
{[%clk 0:00:19.1]} 25... b4 {[%clk 0:01:00.1]} 26. Qe1 {[%clk 0:00:13.4]} 26...
Qb5 {[%clk 0:00:59.2]} 27. axb4 {[%clk 0:00:09.4]} 27... Bxb4 {[%clk 0:01:00.1]}
28. c3 {[%clk 0:00:07.9]} 28... Bxc3 {[%clk 0:00:59.8]} 29. Bxc3 {[%clk
0:00:07.1]} 29... Qb3 {[%clk 0:00:59.4]} 30. Rxd5 {[%clk 0:00:06.6]} 30... exd5
{[%clk 0:00:57.4]} 31. Qd2 {[%clk 0:00:06.2]} 31... a5 {[%clk 0:00:53.8]} 32.
Qd4 {[%clk 0:00:04.8]} 32... Kf8 {[%clk 0:00:46]} 33. Re1 {[%clk 0:00:04.5]}
33... Rxc3 {[%clk 0:00:43]} 34. Qh8# {[%clk 0:00:04.1]} 1-0

[Event "*** Titled Tuesday Blitz"]
[Site "Chess.com"]
[Date "2020.04.28"]
[Round "7"]
[White "yoolund"]
[Black "TheoSlade"]
[Result "1-0"]
[WhiteElo "2540"]
[BlackElo "2318"]
[TimeControl "180+1"]
[EndTime "11:17:46 PDT"]
[Termination "yoolund won by checkmate"]

1. d4 {[%clk 0:03:00.9]} 1... Nf6 {[%clk 0:03:00.1]} 2. Bg5 {[%clk 0:03:00]}
2... d5 {[%clk 0:03:00]} 3. Bxf6 {[%clk 0:02:59.3]} 3... gxf6 {[%clk 0:03:00.9]}
4. c4 {[%clk 0:02:58.8]} 4... e6 {[%clk 0:02:58.7]} 5. Nc3 {[%clk 0:02:56.8]}
5... dxc4 {[%clk 0:02:54]} 6. e3 {[%clk 0:02:54.8]} 6... c5 {[%clk 0:02:53.7]}
7. Nf3 {[%clk 0:02:51.4]} 7... Nc6 {[%clk 0:02:50.6]} 8. Bxc4 {[%clk 0:02:43.8]}
8... cxd4 {[%clk 0:02:47.2]} 9. exd4 {[%clk 0:02:44.7]} 9... Bg7 {[%clk
0:02:32.3]} 10. d5 {[%clk 0:02:43.5]} 10... Ne7 {[%clk 0:02:22.4]} 11. dxe6
{[%clk 0:02:33.2]} 11... Qxd1+ {[%clk 0:02:19.3]} 12. Rxd1 {[%clk 0:02:29.4]}
12... fxe6 {[%clk 0:02:15.4]} 13. O-O {[%clk 0:02:18.8]} 13... Kf7 {[%clk
0:01:56.2]} 14. Nb5 {[%clk 0:02:09.2]} 14... Nf5 {[%clk 0:01:25]} 15. g4 {[%clk
0:01:46.1]} 15... Nh6 {[%clk 0:01:23.7]} 16. h3 {[%clk 0:01:44.7]} 16... Ke7
{[%clk 0:01:12.4]} 17. Rfe1 {[%clk 0:01:31.7]} 17... e5 {[%clk 0:01:02.8]} 18.
g5 {[%clk 0:01:27.6]} 18... Nf7 {[%clk 0:00:55.3]} 19. Nc7 {[%clk 0:01:16.2]}
19... Rb8 {[%clk 0:00:43.3]} 20. Nd5+ {[%clk 0:01:00.6]} 20... Kf8 {[%clk
0:00:33.4]} 21. gxf6 {[%clk 0:01:00.4]} 21... Bh6 {[%clk 0:00:33.4]} 22. Nxe5
{[%clk 0:00:59.9]} 22... Nxe5 {[%clk 0:00:28.1]} 23. Rxe5 {[%clk 0:01:00.8]}
23... Rg8+ {[%clk 0:00:20.9]} 24. Kh2 {[%clk 0:00:59.4]} 24... Bd7 {[%clk
0:00:16.1]} 25. Rh5 {[%clk 0:00:58.3]} 25... Rg6 {[%clk 0:00:13.6]} 26. Bd3
{[%clk 0:00:57]} 26... Kf7 {[%clk 0:00:08.4]} 27. Bxg6+ {[%clk 0:00:52.2]} 27...
Kxg6 {[%clk 0:00:09.3]} 28. Re5 {[%clk 0:00:52.2]} 28... Bc6 {[%clk 0:00:08.6]}
29. Rg1+ {[%clk 0:00:47.5]} 29... Kf7 {[%clk 0:00:07.7]} 30. Re7+ {[%clk
0:00:47.5]} 30... Kf8 {[%clk 0:00:08]} 31. Rxh7 {[%clk 0:00:47.6]} 31... Bxd5
{[%clk 0:00:03.8]} 32. Rxh6 {[%clk 0:00:43.9]} 32... Kf7 {[%clk 0:00:04.2]} 33.
Rg7+ {[%clk 0:00:42.2]} 33... Kf8 {[%clk 0:00:04.8]} 34. Rh8+ {[%clk 0:00:41.3]}
34... Bg8 {[%clk 0:00:05.3]} 35. Rhxg8# {[%clk 0:00:42.2]} 1-0

[Event "*** Titled Tuesday Blitz"]
[Site "Chess.com"]
[Date "2020.04.28"]
[Round "7"]
[White "dukicz123"]
[Black "Muracle"]
[Result "0-1"]
[WhiteElo "2500"]
[BlackElo "2673"]
[TimeControl "180+1"]
[EndTime "11:17:47 PDT"]
[Termination "Muracle won by resignation"]

1. e4 {[%clk 0:03:00.9]} 1... c5 {[%clk 0:02:59.6]} 2. Nf3 {[%clk 0:03:01.1]}
2... Nc6 {[%clk 0:02:59.4]} 3. d4 {[%clk 0:03:01.8]} 3... cxd4 {[%clk
0:02:59.3]} 4. Nxd4 {[%clk 0:03:02.7]} 4... e5 {[%clk 0:02:59.2]} 5. Nb5 {[%clk
0:03:02.6]} 5... d6 {[%clk 0:02:59.2]} 6. N1c3 {[%clk 0:03:03.2]} 6... a6 {[%clk
0:02:59.2]} 7. Na3 {[%clk 0:03:03.9]} 7... b5 {[%clk 0:02:59.3]} 8. Nd5 {[%clk
0:03:04.2]} 8... Nge7 {[%clk 0:02:59.3]} 9. c4 {[%clk 0:03:03.5]} 9... Nxd5
{[%clk 0:02:59.2]} 10. cxd5 {[%clk 0:03:04.2]} 10... Nb8 {[%clk 0:02:57.4]} 11.
Nc2 {[%clk 0:02:56.1]} 11... Be7 {[%clk 0:02:50.6]} 12. a4 {[%clk 0:02:54.5]}
12... bxa4 {[%clk 0:02:50.1]} 13. Rxa4 {[%clk 0:02:53.4]} 13... O-O {[%clk
0:02:49.2]} 14. Be2 {[%clk 0:02:44.4]} 14... Nd7 {[%clk 0:02:48.4]} 15. b4
{[%clk 0:02:37.7]} 15... Nf6 {[%clk 0:02:43.1]} 16. f3 {[%clk 0:02:33.5]} 16...
Bd7 {[%clk 0:02:37.6]} 17. Ra3 {[%clk 0:02:29.1]} 17... Bb5 {[%clk 0:02:36.5]}
18. O-O {[%clk 0:02:26.4]} 18... Nh5 {[%clk 0:02:34.1]} 19. Bxb5 {[%clk
0:02:03.8]} 19... axb5 {[%clk 0:02:31.6]} 20. Qd3 {[%clk 0:02:04.1]} 20... Rb8
{[%clk 0:02:23.6]} 21. Ra5 {[%clk 0:02:01]} 21... Bg5 {[%clk 0:02:16.9]} 22.
Rxb5 {[%clk 0:01:45.2]} 22... Rc8 {[%clk 0:02:04.4]} 23. Bxg5 {[%clk 0:01:18.3]}
23... Qxg5 {[%clk 0:02:02.5]} 24. Ne3 {[%clk 0:01:12]} 24... Nf4 {[%clk
0:01:56.7]} 25. Qd2 {[%clk 0:01:06]} 25... Nxg2 {[%clk 0:01:54.9]} 26. Qxg2
{[%clk 0:01:06.3]} 26... Qxe3+ {[%clk 0:01:54.4]} 27. Qf2 {[%clk 0:01:02.4]}
27... Qd3 {[%clk 0:01:46.9]} 28. Rb6 {[%clk 0:00:46]} 28... Rc2 {[%clk
0:01:45.1]} 29. Rxd6 {[%clk 0:00:23.3]} 29... Rxf2 {[%clk 0:01:37.4]} 30. Rxf2
{[%clk 0:00:24.2]} 30... Qb1+ {[%clk 0:01:35.5]} 31. Kg2 {[%clk 0:00:24.7]}
31... Qxb4 {[%clk 0:01:36.4]} 32. Rc6 {[%clk 0:00:25.3]} 32... Rd8 {[%clk
0:01:32.3]} 33. Rfc2 {[%clk 0:00:23.9]} 33... h5 {[%clk 0:01:31.4]} 34. Rc8
{[%clk 0:00:20.3]} 34... Rxc8 {[%clk 0:01:30.7]} 35. Rxc8+ {[%clk 0:00:21.2]}
35... Kh7 {[%clk 0:01:31]} 36. Rc2 {[%clk 0:00:21.1]} 36... g5 {[%clk
0:01:25.6]} 37. Kg3 {[%clk 0:00:18.8]} 37... Kg6 {[%clk 0:01:24.5]} 38. Kg2
{[%clk 0:00:18]} 38... f6 {[%clk 0:01:23.4]} 39. Kf2 {[%clk 0:00:16.5]} 39... g4
{[%clk 0:01:22.3]} 40. Re2 {[%clk 0:00:11.6]} 40... Qd4+ {[%clk 0:01:13]} 41.
Kg2 {[%clk 0:00:11.7]} 41... Qd3 {[%clk 0:01:12.1]} 42. Rf2 {[%clk 0:00:06.5]}
42... gxf3+ {[%clk 0:01:11.7]} 43. Rxf3 {[%clk 0:00:07.4]} 43... Qxe4 {[%clk
0:01:12]} 44. d6 {[%clk 0:00:08.3]} 44... Qd5 {[%clk 0:01:09.9]} 0-1

[Event "*** Titled Tuesday Blitz"]
[Site "Chess.com"]
[Date "2020.04.28"]
[Round "7"]
[White "Ashedu66"]
[Black "northridgehawk"]
[Result "1-0"]
[WhiteElo "2128"]
[BlackElo "2296"]
[TimeControl "180+1"]
[EndTime "11:17:52 PDT"]
[Termination "Ashedu66 won by checkmate"]

1. d4 {[%clk 0:03:00.9]} 1... Nf6 {[%clk 0:02:58.8]} 2. Nf3 {[%clk 0:03:00.3]}
2... g6 {[%clk 0:02:56.3]} 3. c4 {[%clk 0:03:00.3]} 3... Bg7 {[%clk 0:02:56.1]}
4. Nc3 {[%clk 0:03:00.4]} 4... d5 {[%clk 0:02:55.6]} 5. Bf4 {[%clk 0:02:59.8]}
5... O-O {[%clk 0:02:56.1]} 6. Rc1 {[%clk 0:02:59.5]} 6... Be6 {[%clk
0:02:47.8]} 7. cxd5 {[%clk 0:02:44.2]} 7... Nxd5 {[%clk 0:02:48.7]} 8. Be5
{[%clk 0:02:23.5]} 8... f6 {[%clk 0:02:45.1]} 9. Bg3 {[%clk 0:02:20.1]} 9... Nc6
{[%clk 0:02:41]} 10. e4 {[%clk 0:02:12]} 10... Nxc3 {[%clk 0:02:41.2]} 11. Rxc3
{[%clk 0:02:09.9]} 11... Bxa2 {[%clk 0:02:41.6]} 12. d5 {[%clk 0:02:03]} 12...
Na5 {[%clk 0:02:38.7]} 13. Bxc7 {[%clk 0:01:40.7]} 13... Bb3 {[%clk 0:02:28.7]}
14. Qc1 {[%clk 0:01:12.4]} 14... Qd7 {[%clk 0:02:21.4]} 15. Bxa5 {[%clk
0:01:10.9]} 15... Ba4 {[%clk 0:02:19.6]} 16. Be2 {[%clk 0:01:03.7]} 16... b6
{[%clk 0:02:15.7]} 17. Bb4 {[%clk 0:01:02]} 17... a5 {[%clk 0:02:16.1]} 18. Ba3
{[%clk 0:00:57]} 18... b5 {[%clk 0:02:16.6]} 19. b3 {[%clk 0:00:44.9]} 19... b4
{[%clk 0:02:15.9]} 20. Rc7 {[%clk 0:00:42.5]} 20... Qg4 {[%clk 0:02:15.9]} 21.
bxa4 {[%clk 0:00:38.3]} 21... bxa3 {[%clk 0:02:11.5]} 22. O-O {[%clk 0:00:36.6]}
22... Qxe4 {[%clk 0:02:11.4]} 23. Bb5 {[%clk 0:00:32.8]} 23... f5 {[%clk
0:02:05.3]} 24. Qxa3 {[%clk 0:00:31.5]} 24... h6 {[%clk 0:02:02.1]} 25. Rxe7
{[%clk 0:00:28.4]} 25... Qxd5 {[%clk 0:02:00.5]} 26. Rxg7+ {[%clk 0:00:21.8]}
26... Kxg7 {[%clk 0:02:00.1]} 27. h3 {[%clk 0:00:20.2]} 27... Rac8 {[%clk
0:01:59.3]} 28. Re1 {[%clk 0:00:18.2]} 28... Rf7 {[%clk 0:01:57.8]} 29. Qe3
{[%clk 0:00:16.7]} 29... Rcc7 {[%clk 0:01:53.5]} 30. Qa3 {[%clk 0:00:15.6]}
30... g5 {[%clk 0:01:51.6]} 31. Ne5 {[%clk 0:00:15.2]} 31... Rfe7 {[%clk
0:01:51.3]} 32. Qb2 {[%clk 0:00:15.1]} 32... Kh7 {[%clk 0:01:46.8]} 33. f4
{[%clk 0:00:14.8]} 33... gxf4 {[%clk 0:01:44]} 34. Bd3 {[%clk 0:00:14.7]} 34...
Kg8 {[%clk 0:01:38.4]} 35. Bxf5 {[%clk 0:00:14.3]} 35... Rc5 {[%clk 0:01:36.4]}
36. Kh2 {[%clk 0:00:13.8]} 36... Rxe5 {[%clk 0:01:36.2]} 37. Qb8+ {[%clk
0:00:12.3]} 37... Kf7 {[%clk 0:01:34.9]} 38. Qa7+ {[%clk 0:00:12]} 38... Kf6
{[%clk 0:01:34.5]} 39. Rxe5 {[%clk 0:00:11.9]} 39... Kxe5 {[%clk 0:01:33.8]} 40.
Bg4 {[%clk 0:00:11.6]} 40... Rc2 {[%clk 0:01:32.8]} 41. Bf3 {[%clk 0:00:11.5]}
41... Qxf3 {[%clk 0:01:32.8]} 42. Qb8+ {[%clk 0:00:09.7]} 42... Kd4 {[%clk
0:01:32.5]} 43. Qb6+ {[%clk 0:00:07.5]} 43... Kd3 {[%clk 0:01:32.6]} 44. Qg6+
{[%clk 0:00:04]} 44... Ke3 {[%clk 0:01:30.8]} 45. Qxc2 {[%clk 0:00:03.4]} 45...
Qg3+ {[%clk 0:01:30.2]} 46. Kh1 {[%clk 0:00:02.7]} 46... Qe1+ {[%clk 0:01:29.5]}
47. Kh2 {[%clk 0:00:02.9]} 47... f3 {[%clk 0:01:29.4]} 48. Qb3+ {[%clk
0:00:01.6]} 48... Kf2 {[%clk 0:01:28.7]} 49. Qxf3# {[%clk 0:00:01.6]} 1-0

[Event "*** Titled Tuesday Blitz"]
[Site "Chess.com"]
[Date "2020.04.28"]
[Round "7"]
[White "lupta_robin"]
[Black "RovenVogel"]
[Result "1-0"]
[WhiteElo "2564"]
[BlackElo "2705"]
[TimeControl "180+1"]
[EndTime "11:17:54 PDT"]
[Termination "lupta_robin won by resignation"]

1. e4 {[%clk 0:03:00.9]} 1... c5 {[%clk 0:01:19.7]} 2. b3 {[%clk 0:02:54.3]}
2... d5 {[%clk 0:01:05.4]} 3. exd5 {[%clk 0:02:53.7]} 3... Qxd5 {[%clk
0:01:06.3]} 4. Nc3 {[%clk 0:02:52.6]} 4... Qd8 {[%clk 0:01:01.1]} 5. Bb5+ {[%clk
0:02:47.9]} 5... Bd7 {[%clk 0:00:59.8]} 6. Qe2 {[%clk 0:02:37.7]} 6... Nf6
{[%clk 0:00:58.4]} 7. Bb2 {[%clk 0:02:37.8]} 7... Nc6 {[%clk 0:00:56.8]} 8. Nf3
{[%clk 0:02:37.8]} 8... Nd4 {[%clk 0:00:56]} 9. Nxd4 {[%clk 0:02:32.5]} 9...
cxd4 {[%clk 0:00:56.9]} 10. Ne4 {[%clk 0:02:30.9]} 10... e6 {[%clk 0:00:48.7]}
11. Nxf6+ {[%clk 0:02:19.5]} 11... gxf6 {[%clk 0:00:44.5]} 12. Bxd4 {[%clk
0:02:19.8]} 12... Rg8 {[%clk 0:00:43.4]} 13. O-O {[%clk 0:02:05.6]} 13... Be7
{[%clk 0:00:32.4]} 14. Bb2 {[%clk 0:01:58.4]} 14... a6 {[%clk 0:00:30.5]} 15.
Bxd7+ {[%clk 0:01:58]} 15... Qxd7 {[%clk 0:00:31.4]} 16. c4 {[%clk 0:01:53.3]}
16... O-O-O {[%clk 0:00:27.6]} 17. d4 {[%clk 0:01:52.1]} 17... Kb8 {[%clk
0:00:27.2]} 18. Rac1 {[%clk 0:01:45.4]} 18... h5 {[%clk 0:00:26.4]} 19. Rfd1
{[%clk 0:01:45.1]} 19... h4 {[%clk 0:00:25.2]} 20. d5 {[%clk 0:01:39.7]} 20...
e5 {[%clk 0:00:24.6]} 21. c5 {[%clk 0:01:36.5]} 21... Qh3 {[%clk 0:00:19.8]} 22.
f3 {[%clk 0:01:31.6]} 22... Rg6 {[%clk 0:00:12.1]} 23. Kh1 {[%clk 0:01:26.6]}
23... Qf5 {[%clk 0:00:10.1]} 24. d6 {[%clk 0:01:23.6]} 24... Bf8 {[%clk
0:00:09.2]} 25. c6 {[%clk 0:01:22]} 25... Bxd6 {[%clk 0:00:08.3]} 26. cxb7
{[%clk 0:01:19.9]} 26... h3 {[%clk 0:00:06.9]} 27. g3 {[%clk 0:01:10.9]} 27...
Rgg8 {[%clk 0:00:04]} 28. Rf1 {[%clk 0:01:01.6]} 28... Qd7 {[%clk 0:00:03.5]}
29. Qxa6 {[%clk 0:00:59.4]} 29... Qxb7 {[%clk 0:00:04.4]} 30. Qc4 {[%clk
0:00:50.2]} 30... f5 {[%clk 0:00:02.4]} 31. Rcd1 {[%clk 0:00:44.8]} 31... f6
{[%clk 0:00:01.6]} 32. Rd5 {[%clk 0:00:42.7]} 32... f4 {[%clk 0:00:01.5]} 33.
Rb5 {[%clk 0:00:42]} 33... Bc7 {[%clk 0:00:01.8]} 34. Rxb7+ {[%clk 0:00:41.5]}
34... Kxb7 {[%clk 0:00:02.7]} 1-0

[Event "*** Titled Tuesday Blitz"]
[Site "Chess.com"]
[Date "2020.04.28"]
[Round "7"]
[White "swapchess90"]
[Black "plumalka"]
[Result "1-0"]
[WhiteElo "2674"]
[BlackElo "2436"]
[TimeControl "180+1"]
[EndTime "11:17:54 PDT"]
[Termination "swapchess90 won by checkmate"]

1. Nf3 {[%clk 0:03:00.9]} 1... c5 {[%clk 0:02:59.8]} 2. g3 {[%clk 0:03:00.2]}
2... Nc6 {[%clk 0:02:59.6]} 3. Bg2 {[%clk 0:03:00.7]} 3... e5 {[%clk 0:02:58.8]}
4. e4 {[%clk 0:03:00.6]} 4... g6 {[%clk 0:02:57.9]} 5. O-O {[%clk 0:02:59.5]}
5... Bg7 {[%clk 0:02:58.2]} 6. Nc3 {[%clk 0:02:59.3]} 6... Nge7 {[%clk 0:02:58]}
7. d3 {[%clk 0:02:59]} 7... O-O {[%clk 0:02:57.8]} 8. Nd2 {[%clk 0:02:59.3]}
8... d6 {[%clk 0:02:56.4]} 9. Nc4 {[%clk 0:02:59.5]} 9... Rb8 {[%clk 0:02:53.8]}
10. a4 {[%clk 0:02:57.6]} 10... Be6 {[%clk 0:02:51.6]} 11. Nd5 {[%clk
0:02:55.6]} 11... Bxd5 {[%clk 0:02:49.3]} 12. exd5 {[%clk 0:02:55.7]} 12... Nb4
{[%clk 0:02:49.2]} 13. Ne3 {[%clk 0:02:55.3]} 13... f5 {[%clk 0:02:45.6]} 14. f4
{[%clk 0:02:44.9]} 14... exf4 {[%clk 0:02:38.9]} 15. gxf4 {[%clk 0:02:45.8]}
15... Bd4 {[%clk 0:02:30.4]} 16. c3 {[%clk 0:02:45.4]} 16... Bxe3+ {[%clk
0:02:28.3]} 17. Bxe3 {[%clk 0:02:46.3]} 17... Nbxd5 {[%clk 0:02:28.3]} 18. Bxd5+
{[%clk 0:02:38]} 18... Nxd5 {[%clk 0:02:23.2]} 19. Qb3 {[%clk 0:02:37.9]} 19...
Re8 {[%clk 0:02:16.6]} 20. Qxd5+ {[%clk 0:02:36.4]} 20... Kh8 {[%clk 0:02:16.8]}
21. Rae1 {[%clk 0:02:36.2]} 21... Qf6 {[%clk 0:02:12.2]} 22. Bf2 {[%clk
0:02:18.2]} 22... b6 {[%clk 0:02:01.7]} 23. Rxe8+ {[%clk 0:02:12.5]} 23... Rxe8
{[%clk 0:02:02.6]} 24. Re1 {[%clk 0:02:13.4]} 24... Rxe1+ {[%clk 0:01:59.8]} 25.
Bxe1 {[%clk 0:02:14.3]} 25... g5 {[%clk 0:01:58.1]} 26. Bg3 {[%clk 0:02:03.7]}
26... h5 {[%clk 0:01:53.5]} 27. fxg5 {[%clk 0:01:41.1]} 27... Qxg5 {[%clk
0:01:54.4]} 28. Qxd6 {[%clk 0:01:41.6]} 28... Qe3+ {[%clk 0:01:40]} 29. Bf2
{[%clk 0:01:37.3]} 29... Qc1+ {[%clk 0:01:38.4]} 30. Kg2 {[%clk 0:01:37.6]}
30... Qxb2 {[%clk 0:01:32.9]} 31. Qh6+ {[%clk 0:01:36.4]} 31... Kg8 {[%clk
0:01:32.6]} 32. Qg6+ {[%clk 0:01:36.9]} 32... Kh8 {[%clk 0:01:31.8]} 33. Qxh5+
{[%clk 0:01:37]} 33... Kg8 {[%clk 0:01:31.9]} 34. Qg6+ {[%clk 0:01:30]} 34...
Kh8 {[%clk 0:01:32]} 35. Qxf5 {[%clk 0:01:20.4]} 35... Qxc3 {[%clk 0:01:31.3]}
36. Bg3 {[%clk 0:00:53.7]} 36... Qd2+ {[%clk 0:01:28]} 37. Kh3 {[%clk
0:00:53.8]} 37... Qh6+ {[%clk 0:01:26.8]} 38. Kg4 {[%clk 0:00:54.2]} 38... Qc6
{[%clk 0:01:05.1]} 39. Be5+ {[%clk 0:00:46.7]} 39... Kg8 {[%clk 0:01:05]} 40.
Kg5 {[%clk 0:00:41.1]} 40... Qg2+ {[%clk 0:00:41.9]} 41. Kh6 {[%clk 0:00:38.9]}
41... Qd2+ {[%clk 0:00:37.6]} 42. Bf4 {[%clk 0:00:38.7]} 42... Qc3 {[%clk
0:00:34.1]} 43. Qg6+ {[%clk 0:00:38.7]} 43... Kf8 {[%clk 0:00:34.1]} 44. Bd6#
{[%clk 0:00:38.6]} 1-0

[Event "*** Titled Tuesday Blitz"]
[Site "Chess.com"]
[Date "2020.04.28"]
[Round "7"]
[White "FedaMaster"]
[Black "WPWPWP-2015"]
[Result "0-1"]
[WhiteElo "2562"]
[BlackElo "2430"]
[TimeControl "180+1"]
[EndTime "11:17:54 PDT"]
[Termination "WPWPWP-2015 won by checkmate"]

1. e4 {[%clk 0:03:00.9]} 1... c5 {[%clk 0:02:58.1]} 2. Nf3 {[%clk 0:02:58.4]}
2... e6 {[%clk 0:02:57.9]} 3. d4 {[%clk 0:02:58.1]} 3... cxd4 {[%clk 0:02:57.7]}
4. c3 {[%clk 0:02:58.7]} 4... Nc6 {[%clk 0:02:56.4]} 5. cxd4 {[%clk 0:02:58.3]}
5... d5 {[%clk 0:02:53.9]} 6. e5 {[%clk 0:02:58.6]} 6... Nge7 {[%clk 0:02:34.4]}
7. Nc3 {[%clk 0:02:50.7]} 7... a6 {[%clk 0:02:32.6]} 8. Bd3 {[%clk 0:02:43.7]}
8... Ng6 {[%clk 0:02:29.6]} 9. h4 {[%clk 0:02:43.1]} 9... Be7 {[%clk 0:02:25.4]}
10. h5 {[%clk 0:02:34.8]} 10... Nf8 {[%clk 0:02:25.1]} 11. Rh3 {[%clk
0:02:26.1]} 11... b5 {[%clk 0:02:17.4]} 12. Rg3 {[%clk 0:02:14.5]} 12... g6
{[%clk 0:02:16.8]} 13. Bg5 {[%clk 0:02:08.5]} 13... Bxg5 {[%clk 0:02:10.1]} 14.
Nxg5 {[%clk 0:02:03.7]} 14... h6 {[%clk 0:02:04.3]} 15. Nxf7 {[%clk 0:02:03.1]}
15... Kxf7 {[%clk 0:02:02.1]} 16. Qf3+ {[%clk 0:00:45.3]} 16... Ke7 {[%clk
0:01:52.7]} 17. hxg6 {[%clk 0:00:44.8]} 17... Nxg6 {[%clk 0:01:51.5]} 18. Rxg6
{[%clk 0:00:40.2]} 18... Qf8 {[%clk 0:01:44.9]} 19. Rf6 {[%clk 0:00:27.5]} 19...
Qg7 {[%clk 0:01:36.2]} 20. Nxd5+ {[%clk 0:00:26.4]} 20... exd5 {[%clk
0:01:35.9]} 21. Qxd5 {[%clk 0:00:26.2]} 21... Bd7 {[%clk 0:01:24.3]} 22. Qd6+
{[%clk 0:00:19.4]} 22... Kd8 {[%clk 0:01:23.9]} 23. d5 {[%clk 0:00:11.8]} 23...
Nxe5 {[%clk 0:01:17.6]} 24. Qb6+ {[%clk 0:00:10.5]} 24... Ke8 {[%clk 0:01:08.9]}
25. O-O-O {[%clk 0:00:09.4]} 25... Rf8 {[%clk 0:00:54.6]} 26. Rxh6 {[%clk
0:00:06.3]} 26... Rc8+ {[%clk 0:00:45.4]} 27. Kb1 {[%clk 0:00:05.1]} 27... Nxd3
{[%clk 0:00:39.7]} 28. Qe3+ {[%clk 0:00:04]} 28... Qe7 {[%clk 0:00:37.7]} 29.
Rxd3 {[%clk 0:00:02.5]} 29... Qxe3 {[%clk 0:00:33.9]} 30. Rxe3+ {[%clk
0:00:03.4]} 30... Kd8 {[%clk 0:00:34.2]} 31. f3 {[%clk 0:00:03.5]} 31... Bf5+
{[%clk 0:00:33.9]} 32. Re4 {[%clk 0:00:03.8]} 32... Bxe4+ {[%clk 0:00:33.6]} 33.
fxe4 {[%clk 0:00:04.7]} 33... Rf1# {[%clk 0:00:33.4]} 0-1

[Event "*** Titled Tuesday Blitz"]
[Site "Chess.com"]
[Date "2020.04.28"]
[Round "7"]
[White "silverback96"]
[Black "Charlottemillard17"]
[Result "1-0"]
[WhiteElo "2127"]
[BlackElo "1409"]
[TimeControl "180+1"]
[EndTime "11:17:54 PDT"]
[Termination "silverback96 won by checkmate"]

1. e4 {[%clk 0:03:00.9]} 1... e5 {[%clk 0:02:58.7]} 2. Nf3 {[%clk 0:03:01.4]}
2... Nc6 {[%clk 0:02:57.4]} 3. Bc4 {[%clk 0:03:02]} 3... Bc5 {[%clk 0:02:54.9]}
4. O-O {[%clk 0:03:02.4]} 4... Nf6 {[%clk 0:02:52.6]} 5. d4 {[%clk 0:03:02.8]}
5... exd4 {[%clk 0:02:43.6]} 6. e5 {[%clk 0:03:01.9]} 6... Ng8 {[%clk
0:02:25.5]} 7. Re1 {[%clk 0:02:44]} 7... h6 {[%clk 0:02:12.9]} 8. Nfd2 {[%clk
0:02:32.5]} 8... Nge7 {[%clk 0:01:54.5]} 9. Ne4 {[%clk 0:02:32.2]} 9... Bb6
{[%clk 0:01:37.1]} 10. Qh5 {[%clk 0:02:32.6]} 10... Ng6 {[%clk 0:01:19.4]} 11.
Bxf7+ {[%clk 0:02:25.2]} 11... Kxf7 {[%clk 0:01:16.5]} 12. Qf5+ {[%clk
0:02:25.8]} 12... Kg8 {[%clk 0:01:09.4]} 13. Qxg6 {[%clk 0:02:26]} 13... Nxe5
{[%clk 0:01:07]} 14. Qg3 {[%clk 0:02:15.5]} 14... d6 {[%clk 0:00:59.5]} 15. a4
{[%clk 0:02:12.8]} 15... a5 {[%clk 0:00:57.2]} 16. Bf4 {[%clk 0:01:56.3]} 16...
Ng4 {[%clk 0:00:47.5]} 17. h3 {[%clk 0:01:48.8]} 17... Nf6 {[%clk 0:00:46.7]}
18. Nxf6+ {[%clk 0:01:49.3]} 18... Qxf6 {[%clk 0:00:45.6]} 19. Re8+ {[%clk
0:01:49.2]} 19... Kh7 {[%clk 0:00:44.2]} 20. Rxh8+ {[%clk 0:01:40.5]} 20... Kxh8
{[%clk 0:00:41.8]} 21. Nd2 {[%clk 0:01:41.4]} 21... d3 {[%clk 0:00:36.6]} 22.
cxd3 {[%clk 0:01:36.9]} 22... Qxb2 {[%clk 0:00:35.8]} 23. Re1 {[%clk 0:01:36.6]}
23... Bf5 {[%clk 0:00:32.6]} 24. Re7 {[%clk 0:01:33.3]} 24... Rg8 {[%clk
0:00:21.6]} 25. Nc4 {[%clk 0:01:20.7]} 25... Qb3 {[%clk 0:00:20.3]} 26. Qh4
{[%clk 0:01:03.9]} 26... Qb1+ {[%clk 0:00:18.3]} 27. Kh2 {[%clk 0:01:03.1]}
27... Qxd3 {[%clk 0:00:17.5]} 28. Bxh6 {[%clk 0:01:01.6]} 28... Bh7 {[%clk
0:00:14.4]} 29. Nxb6 {[%clk 0:00:50.7]} 29... cxb6 {[%clk 0:00:13.8]} 30. Be3
{[%clk 0:00:51.3]} 30... Qd5 {[%clk 0:00:12.9]} 31. Bd4 {[%clk 0:00:49.9]} 31...
Qb3 {[%clk 0:00:07.5]} 32. Qg5 {[%clk 0:00:48.5]} 32... Qxa4 {[%clk 0:00:04.9]}
33. Bxg7+ {[%clk 0:00:47.9]} 33... Rxg7 {[%clk 0:00:04.6]} 34. Qxg7# {[%clk
0:00:48.8]} 1-0